bitfinex-derivatives/quotes_ETHF0:USTF0_20250701
["timestamp","ask_amount","ask_price","bid_price","bid_amount"]
[1751383743434,0.82428,2425.5,2425.4,25.506]
[1751383743635,0.82428,2425.5,2425.4,26.33032]
[1751383744233,0.82428,2425.5,2425.4,25.506]
[1751383744432,0.82428,2425.5,2425.4,26.33032]
[1751383747835,0.82435,2425.4,2425.3,0.82433]
[1751383748031,0.82435,2425.4,2425.3,26.32433]
[1751383748238,0.82435,2425.3,2425.2,11.858]
[1751383748427,3.61095,2425.3,2425.2,11.858]
[1751383749234,2.20155,2425.3,2425.2,11.858]
[1751383750236,2.20155,2425.3,2425.2,12.68239]
[1751383750737,1.52065,2425.3,2425.2,12.68239]
[1751383750934,1.52065,2425.3,2425.2,13.39269]
[1751383751234,1.52065,2425.3,2425.2,12.5683]
[1751383751634,1.52065,2425.3,2425.2,13.39269]
[1751383752038,1.52065,2425.3,2425.2,12.5683]
[1751383752434,1.52065,2425.3,2425.2,11.858]
[1751383752743,7.36705356,2425.3,2425.2,11.858]
[1751383753839,4.56758289,2425.3,2425.2,11.858]
[1751383757141,5.54392829,2425.3,2425.2,11.858]
[1751383757538,6.23772829,2425.3,2425.2,11.858]
[1751383759239,4.56758289,2425.3,2425.2,12.68239]
[1751383759639,0.82435,2425.4,2425.3,0.82432]
[1751383759937,0.82435,2425.4,2425.3,1.48982]
[1751383760142,1.80077164,2425.4,2425.3,1.48982]
[1751383760343,1.80077164,2425.4,2425.3,26.98382]
[1751383762447,1.80077164,2425.4,2425.3,26.1595]
[1751383762642,1.80077164,2425.4,2425.3,26.98385]
[1751383763642,1.80077164,2425.4,2425.3,26.1595]
[1751383763843,2.06089,2425.3,2425.0,0.82443]
[1751383764046,1.53315,2425.3,2425.2,25.492]
[1751383764244,0.82439,2425.2,2425.1,0.82441]
[1751383764448,1.80012016,2425.2,2425.1,26.31441]
[1751383765348,1.80012016,2425.2,2425.1,25.49]
[1751383765549,0.82442,2425.1,2425.0,12.67343]
[1751383765849,0.82442,2425.1,2425.0,38.16343]
[1751383766251,0.82442,2425.1,2425.0,37.338]
[1751383766448,0.82442,2425.1,2425.0,38.16245]
[1751383767445,3.87135289,2425.1,2425.0,11.849]
[1751383768549,3.87135289,2425.1,2425.0,12.67345]
[1751383768944,0.82442,2425.1,2425.0,12.67345]
[1751383769546,0.82442,2425.1,2425.0,14.02775]
[1751383771850,4.42493289,2425.3,2425.2,0.82439]
[1751383771851,3.75573289,2425.3,2425.2,0.82439]
[1751383772149,1.80013706,2425.3,2425.2,0.82439]
[1751383774753,0.82439,2425.2,2425.1,26.31139]
[1751383774949,1.80014706,2425.2,2425.1,26.31139]
[1751383775449,4.02268995,2425.2,2425.0,0.82443]
[1751383775646,1.80093398,2425.1,2425.0,0.82443]
[1751383775847,1.80093398,2425.1,2425.0,26.30643]
[1751383778051,1.80093398,2425.1,2425.0,26.30645]
[1751383779652,1.80093398,2425.1,2425.0,25.482]
[1751383779853,0.82445,2425.0,2424.9,13.39028]
[1751383780047,0.82445,2425.0,2424.9,38.86928]
[1751383780554,0.82445,2425.0,2424.9,40.18828]
[1751383781253,0.82445,2425.0,2424.9,27.01928]
[1751383782851,0.82445,2425.0,2424.9,28.42778]
[1751383784053,0.82445,2425.1,2425.0,0.8244]
[1751383784254,0.82445,2425.1,2425.0,2.2329]
[1751383784546,1.80196537,2425.1,2425.0,2.2329]
[1751383785957,1.80196537,2425.1,2425.0,0.8244]
[1751383789156,0.97751537,2425.1,2425.0,2.2518]
[1751383789352,0.8244,2425.2,2425.1,0.82439]
[1751383789552,0.8244,2425.2,2425.1,27.72379]
[1751383789749,0.97762944,2425.2,2425.1,30.77072289]
[1751383789952,0.97762944,2425.2,2425.1,42.61972289]
[1751383790162,0.82432,2425.4,2425.3,0.82435]
[1751383790452,1.80171723,2425.4,2425.3,26.29435]
[1751383791252,0.97739723,2425.4,2425.3,26.29435]
[1751383791552,0.97739723,2425.4,2425.3,26.95145]
[1751383792354,0.82431,2425.5,2425.4,0.82432]
[1751383792559,0.82427,2425.6,2425.5,0.82425]
[1751383792755,1.80118318,2425.6,2425.5,26.29125]
[1751383793659,0.97691318,2425.6,2425.5,26.29125]
[1751383793858,0.82425,2425.6,2425.5,25.467]
[1751383794861,0.82425,2425.6,2425.5,26.29126]
[1751383796164,1.80231754,2425.6,2425.5,26.29126]
[1751383796564,0.97806754,2425.6,2425.5,26.29126]
[1751383796758,1.80231754,2425.6,2425.5,26.29126]
[1751383797461,0.97806754,2425.6,2425.5,26.29126]
[1751383798064,1.80231754,2425.6,2425.5,26.29126]
[1751383798263,0.97806754,2425.6,2425.5,26.29126]
[1751383798466,1.80231754,2425.6,2425.5,26.29126]
[1751383799361,0.97806754,2425.6,2425.5,26.29126]
[1751383799765,1.80231754,2425.6,2425.5,26.29126]
[1751383800164,0.82425,2425.6,2425.5,26.29126]
[1751383801863,0.82425,2425.6,2425.5,25.467]
[1751383802066,0.82432,2425.4,2425.3,3.9356819]
[1751383802359,1.51791,2425.5,2425.4,0.82432]
[1751383802564,0.82428,2425.6,2425.5,0.82425]
[1751383803162,0.82432,2425.5,2425.4,0.82429]
[1751383803562,0.82432,2425.4,2425.3,38.77343]
[1751383806868,0.82432,2425.4,2425.3,0.6571]
[1751383807067,5.10756289,2425.6,2425.2,12.66035]
[1751383807068,0.82439,2425.3,2425.2,12.66035]
[1751383807264,0.82439,2425.3,2425.2,38.11035]
[1751383807465,1.55145,2425.4,2425.3,0.82435]
[1751383808473,1.55145,2425.4,2425.2,37.286]
[1751383808474,0.82435,2425.3,2425.2,38.11036]
[1751383808967,1.55144,2425.4,2425.3,0.82435]
[1751383809167,2.06063,2425.6,2425.3,25.448]
[1751383809368,0.82432,2425.4,2425.3,26.27234]
[1751383809764,0.82432,2425.4,2425.3,25.448]
[1751383809966,3.87125289,2425.4,2425.3,25.448]
[1751383810265,0.82435,2425.3,2425.2,11.836]
[1751383810571,1.50955,2425.3,2425.2,37.283]
[1751383810968,1.50955,2425.3,2425.2,11.836]
[1751383811169,1.50955,2425.3,2425.2,37.282]
[1751383811467,1.50955,2425.3,2425.2,38.10639]
[1751383811667,1.50955,2425.3,2425.0,2.4542519]
[1751383811668,0.6852,2425.3,2425.0,2.4542519]
[1751383811971,3.87135289,2425.2,2425.1,25.446]
[1751383812669,0.82445,2425.0,2424.9,14.2902519]
[1751383812971,3.87138289,2425.0,2424.9,38.10649]
[1751383813667,3.87138289,2425.0,2424.9,37.282]
[1751383813873,3.87138289,2425.0,2424.9,11.836]
[1751383814075,3.87138289,2425.0,2424.9,37.281]
[1751383814576,3.87138289,2425.0,2424.9,38.10549]
[1751383815072,3.87138289,2425.0,2424.9,37.28]
[1751383815274,3.87138289,2425.0,2424.9,38.10449]
[1751383815470,3.87138289,2425.0,2424.9,37.28]
[1751383815676,0.82452,2424.8,2424.7,0.6768]
[1751383815977,3.87145289,2424.8,2424.7,26.1208]
[1751383816273,0.82456,2424.7,2424.6,61.8352519]
[1751383816472,0.82456,2424.7,2424.6,73.6722519]
[1751383816776,0.82456,2424.7,2424.6,96.661]
[1751383817172,0.82456,2424.7,2424.6,97.48559]
[1751383817476,1.353,2424.9,2424.6,96.661]
[1751383817673,0.82455,2424.8,2424.7,0.82452]
[1751383817873,0.82456,2424.7,2424.6,97.48556]
[1751383819174,0.82446,2425.1,2425.0,0.82443]
[1751383819373,0.82442,2425.1,2425.0,0.82443]
[1751383819574,0.9770052,2425.1,2425.0,0.82443]
[1751383819879,0.715,2425.3,2425.1,0.82439]
[1751383820076,1.80188555,2425.2,2425.1,26.26539]
[1751383820378,0.97749555,2425.2,2425.1,26.26539]
[1751383820872,0.82439,2425.2,2425.1,26.26539]
[1751383821272,0.82439,2425.2,2425.1,26.26542]
[1751383822178,0.82439,2425.2,2425.1,25.441]
[1751383822378,3.87132289,2425.2,2425.1,25.441]
[1751383822579,3.87132289,2425.2,2425.1,26.26542]
[1751383822779,3.87132289,2425.2,2425.1,25.441]
[1751383822969,3.87132289,2425.2,2424.8,1.3237]
[1751383822970,0.82449,2424.9,2424.8,1.3237]
[1751383823174,3.87142289,2424.9,2424.8,26.1065]
[1751383823682,3.04693289,2424.9,2424.8,26.93102]
[1751383823879,0.6782,2425.0,2424.9,0.82449]
[1751383824072,1.50268,2425.0,2424.9,0.82449]
[1751383825579,0.82449,2424.9,2424.8,26.931]
[1751383825879,1.50268,2425.0,2424.9,0.82449]
[1751383826681,0.82449,2424.9,2424.8,26.931]
[1751383827486,0.82449,2424.9,2424.8,0.6685]
[1751383827487,3.87142289,2424.9,2424.8,0.6685]
[1751383827686,3.87142289,2424.9,2424.8,26.1035]
[1751383827882,4.54372289,2424.9,2424.8,26.1035]
[1751383828182,4.54372289,2424.9,2424.8,26.92802]
[1751383828885,0.82452,2424.8,2424.7,0.82453]
[1751383829084,0.82452,2424.8,2424.7,26.95383]
[1751383829982,2.06048,2425.8,2424.8,2.06129]
[1751383830188,0.82439,2425.2,2425.1,3.87133289]
[1751383830490,0.82436,2425.4,2425.3,0.82433]
[1751383830784,0.82435,2425.3,2425.2,1.51866]
[1751383831283,0.6723,2425.7,2425.2,2.75524]
[1751383831492,0.82409,2426.1,2426.0,0.82407]
[1751383831783,0.82411,2426.1,2426.0,0.8241]
[1751383831987,0.82411,2426.0,2425.9,26.25613]
[1751383832188,0.8241,2426.1,2426.0,0.8241]
[1751383832486,0.82411,2426.0,2425.9,26.25613]
[1751383832784,2.05971,2426.7,2426.0,2.06029]
[1751383833082,0.96797868,2426.6,2426.2,3.04693289]
[1751383833286,0.82397,2426.5,2426.3,25.431]
[1751383833585,3.04693289,2426.6,2426.1,1.4368]
[1751383833785,0.82401,2426.3,2426.2,26.24904]
[1751383834286,0.82405,2426.2,2426.1,25.425]
[1751383834890,0.82405,2426.2,2426.1,26.24908]
[1751383835086,0.82405,2426.2,2426.1,25.425]
[1751383835389,0.82405,2426.2,2426.1,26.24908]
[1751383835789,0.82405,2426.2,2426.1,25.425]
[1751383837086,0.82405,2426.2,2426.1,26.24908]
[1751383837590,0.82405,2426.2,2426.1,25.425]
[1751383837794,0.82408,2426.1,2426.0,11.822]
[1751383839790,0.82422,2425.7,2425.6,59.385]
[1751383839994,0.82422,2425.7,2425.6,97.44722]
[1751383840693,0.82422,2425.7,2425.6,72.03022]
[1751383840894,0.82422,2425.7,2425.6,97.44722]
[1751383841088,0.82422,2425.7,2425.6,96.623]
[1751383841287,0.82422,2425.7,2425.6,97.44725]
[1751383842695,0.82422,2425.7,2425.6,97.44625]
[1751383843593,0.82422,2425.7,2425.6,96.622]
[1751383844093,0.82422,2425.7,2425.6,96.621]
[1751383844397,0.82422,2425.7,2425.6,84.799]
[1751383846196,0.82422,2425.7,2425.6,25.414]
[1751383846490,2.7492,2425.8,2425.4,11.821]
[1751383846695,0.82425,2425.6,2425.5,25.412]
[1751383848396,0.82425,2425.6,2425.5,26.23628]
[1751383852200,0.82425,2425.6,2425.5,25.412]
[1751383852394,0.82425,2425.6,2425.5,26.23628]
[1751383852595,0.82432,2425.5,2425.4,0.82429]
[1751383852795,0.82432,2425.5,2425.4,38.05529]
[1751383853004,0.82432,2425.4,2425.3,2.16353]
[1751383853203,0.82432,2425.4,2425.3,39.38153]
[1751383853703,0.82432,2425.4,2425.3,13.97353]
[1751383853902,0.82432,2425.4,2425.3,39.38053]
[1751383855404,0.82431,2425.5,2425.4,0.82427]
[1751383856199,0.82428,2425.6,2425.5,0.82425]
[1751383856404,0.82428,2425.6,2425.5,26.23025]
[1751383856804,0.82428,2425.6,2425.5,25.406]
[1751383857005,0.82428,2425.5,2425.4,0.8243]
[1751383857205,0.82428,2425.5,2425.4,26.2303]
[1751383857407,2.0606,2425.7,2425.3,1.3392]
[1751383857408,0.82432,2425.4,2425.3,1.3392]
[1751383857606,0.82432,2425.4,2425.3,38.5542]
[1751383857906,0.82432,2425.4,2425.3,39.37852]
[1751383858507,0.82439,2425.3,2425.2,11.81]
[1751383858708,0.82439,2425.3,2425.2,38.03936]
[1751383859909,4.09802,2425.8,2425.4,0.8243]
[1751383859910,0.82432,2425.5,2425.4,0.8243]
[1751383860204,0.82411,2426.1,2425.5,2.06072]
[1751383860402,0.96592318,2426.0,2425.9,3.86992447]
[1751383860602,0.96592318,2426.0,2425.9,29.27292447]
[1751383861106,0.96592318,2426.0,2425.9,30.67942447]
[1751383862008,0.82404,2426.3,2426.2,0.82405]
[1751383862200,0.82404,2426.3,2426.2,26.22705]
[1751383862605,0.82404,2426.3,2426.2,25.403]
[1751383863216,1.79024009,2426.3,2426.2,25.403]
[1751383865013,1.79024009,2426.3,2426.2,26.22705]
[1751383865812,0.96620009,2426.3,2426.2,26.22705]
[1751383866215,0.82394,2426.6,2426.5,0.8239]
[1751383866509,1.78973438,2426.6,2426.5,0.8239]
[1751383866713,0.82394,2426.5,2426.4,26.22295]
[1751383867006,0.82401,2426.4,2426.2,1.3414]
[1751383867211,0.82397,2426.5,2426.4,0.82398]
[1751383867411,0.82401,2426.4,2426.3,26.22197]
[1751383867811,1.78966603,2426.4,2426.3,26.22197]
[1751383868209,0.82401,2426.4,2426.3,26.22197]
[1751383868411,0.8239,2426.7,2426.6,0.82386]
[1751383868709,0.8239,2426.7,2426.6,26.21886]
[1751383868905,1.78927127,2426.7,2426.6,26.21886]
[1751383869713,0.96539127,2426.7,2426.6,26.21886]
[1751383870114,3.46026,2427.4,2426.6,39.26174]
[1751383870415,0.96423946,2427.3,2427.2,0.82371]
[1751383870616,0.82371,2427.2,2427.1,0.82372]
[1751383870810,0.96423946,2427.2,2426.9,0.82379]
[1751383871016,0.82383,2426.9,2426.8,0.82381]
[1751383871217,1.3832,2427.4,2426.8,0.82381]
[1751383871218,0.8238,2427.0,2426.9,0.82379]
[1751383871517,0.82381,2426.9,2426.8,2.26992]
[1751383871816,1.78741717,2426.9,2426.8,39.46792]
[1751383872211,0.96360717,2426.9,2426.8,39.46792]
[1751383872409,0.82374,2427.1,2427.0,0.82377]
[1751383872716,0.96331051,2427.1,2426.9,2.05951]
[1751383872915,0.82365,2427.4,2427.3,0.82364]
[1751383873117,0.82365,2427.4,2427.3,26.21164]
[1751383874118,0.82365,2427.4,2427.3,26.21167]
[1751383874308,0.82365,2427.4,2427.3,25.388]
[1751383874509,0.82371,2427.2,2427.1,1.50854]
[1751383874715,0.8237,2427.3,2427.2,0.82369]
[1751383874914,0.8237,2427.3,2427.1,26.0718]
[1751383874915,0.82371,2427.2,2427.1,28.23631]
[1751383875321,0.82371,2427.2,2427.1,38.01671]
[1751383875718,0.82369,2427.3,2427.2,0.82368]
[1751383876418,0.82364,2427.5,2427.4,0.82363]
[1751383876623,0.82364,2427.5,2427.4,26.20963]
[1751383878225,0.8236,2427.5,2427.4,26.20963]
[1751383878823,0.8236,2427.5,2427.4,26.90144]
[1751383879325,0.8236,2427.5,2427.4,0.6918]
[1751383879523,0.8236,2427.5,2427.4,26.0748]
[1751383879724,0.8236,2427.5,2427.4,26.0718]
[1751383880327,0.8236,2427.5,2427.4,0.6918]
[1751383880527,0.82374,2427.2,2427.1,0.82373]
[1751383880825,0.82374,2427.2,2427.1,38.00673]
[1751383881027,0.8237,2427.3,2427.2,0.82368]
[1751383881427,0.82371,2427.2,2427.1,38.00672]
[1751383882226,0.82371,2427.2,2427.1,38.00372]
[1751383883419,2.05902,2427.5,2427.1,11.795]
[1751383883625,0.82373,2427.2,2427.1,37.99472]
[1751383884223,0.82373,2427.2,2427.1,0.82372]
[1751383884522,0.82373,2427.2,2427.1,37.99472]
[1751383886329,0.82369,2427.3,2427.2,0.82367]
[1751383887025,0.82369,2427.3,2427.2,2.16157]
[1751383887626,0.82371,2427.2,2426.9,2.77502]
[1751383887928,0.82377,2427.1,2427.0,37.168]
[1751383888122,0.82377,2427.1,2427.0,37.99176]
[1751383888522,0.82377,2427.1,2427.0,37.99076]
[1751383888722,0.82377,2427.1,2427.0,37.98976]
[1751383889431,0.82377,2427.1,2427.0,0.82377]
[1751383889631,0.82377,2427.1,2427.0,37.98977]
[1751383889832,0.82377,2427.1,2427.0,12.61777]
[1751383890030,0.82377,2427.1,2427.0,11.794]
[1751383890225,2.05944,2427.0,2426.8,11.794]
[1751383890527,1.51777,2427.0,2426.9,26.19581]
[1751383890936,0.7219,2427.3,2427.1,0.82371]
[1751383891134,0.82373,2427.2,2427.1,0.82371]
[1751383891438,0.82373,2427.2,2427.1,26.19471]
[1751383891632,1.5456,2427.3,2427.2,0.82371]
[1751383892034,0.82366,2427.4,2427.3,0.82367]
[1751383892335,0.82366,2427.4,2427.3,26.19467]
[1751383895534,0.82366,2427.4,2427.3,27.55657]
[1751383895935,0.82367,2427.5,2427.4,0.82364]
[1751383896132,0.82366,2427.6,2427.5,0.82364]
[1751383897038,0.82366,2427.6,2427.5,26.19164]
[1751383897239,0.82366,2427.6,2427.5,25.368]
[1751383898439,0.82366,2427.6,2427.5,26.19168]
[1751383899245,1.53514,2427.7,2427.6,0.82365]
[1751383899633,0.82364,2427.7,2427.6,0.82365]
[1751383899844,0.6933,2427.9,2427.8,0.82358]
[1751383900144,1.65183153,2427.9,2427.8,26.18858]
[1751383900347,0.95853153,2427.9,2427.8,29.22814431]
[1751383900547,0.82354,2428.0,2427.9,0.82355]
[1751383900844,6.05681217,2428.1,2427.4,2.72878]
[1751383901043,0.82358,2427.8,2427.7,12.61659]
[1751383901242,0.82357,2427.9,2427.8,0.82355]
[1751383901445,1.78225961,2427.9,2427.8,0.82355]
[1751383901842,1.78225961,2427.9,2427.8,0.82351]
[1751383901843,1.78218961,2427.9,2427.8,0.82351]
[1751383902943,0.95868961,2427.9,2427.8,0.82351]
[1751383903141,1.78215961,2427.9,2427.8,2.26351]
[1751383903340,0.82342,2428.1,2428.0,0.8234]
[1751383903547,0.82342,2428.1,2428.0,26.1854]
[1751383903749,1.78255229,2428.1,2428.0,26.1854]
[1751383904040,0.95913229,2428.1,2428.0,26.1854]
[1751383904351,0.95913229,2428.1,2428.0,33.46865203]
[1751383904545,0.82334,2428.3,2428.2,0.82337]
[1751383904844,0.82337,2428.2,2428.1,0.82338]
[1751383905044,0.8234,2428.1,2428.0,0.82341]
[1751383905245,0.8234,2428.1,2428.0,37.97741]
[1751383905446,0.82339,2428.2,2428.1,0.82336]
[1751383905644,0.82339,2428.2,2428.1,37.154]
[1751383905844,0.8234,2428.1,2428.0,0.82343]
[1751383906042,0.8234,2428.1,2428.0,37.97243]
[1751383908448,2.73975,2428.3,2427.9,0.7175]
[1751383908449,0.82344,2428.0,2427.9,0.7175]
[1751383908646,0.82344,2428.0,2427.9,38.68897]
[1751383909045,0.82344,2428.0,2427.9,0.7175]
[1751383909248,0.82354,2427.7,2427.6,59.323]
[1751383909447,0.82354,2427.7,2427.6,97.1792]
[1751383909850,0.82354,2427.7,2427.6,59.323]
[1751383910046,0.82354,2427.7,2427.6,71.114]
[1751383910250,0.82354,2427.7,2427.6,96.469]
[1751383910448,0.82354,2427.7,2427.6,97.29257]
[1751383911549,0.82353,2427.8,2427.7,0.82351]
[1751383911755,0.82353,2427.8,2427.7,25.354]
[1751383911951,0.82354,2427.7,2427.6,59.323]
[1751383912260,0.82354,2427.7,2427.6,96.468]
[1751383912552,0.82354,2427.7,2427.6,97.29157]
[1751383912743,0.82354,2427.7,2427.6,96.468]
[1751383912948,0.82354,2427.7,2427.6,97.29157]
[1751383914554,2.05861,2428.0,2427.6,96.468]
[1751383914755,0.82354,2427.7,2427.6,97.29156]
[1751383915054,0.82354,2427.7,2427.6,96.468]
[1751383915252,0.82354,2427.7,2427.6,97.29157]
[1751383915455,0.82354,2427.7,2427.6,97.29156]
[1751383915956,0.82354,2427.7,2427.6,96.468]
[1751383916752,0.82354,2427.7,2427.6,97.28957]
[1751383917147,1.371,2428.0,2427.6,97.28957]
[1751383917148,0.82353,2427.8,2427.7,0.8235]
[1751383917349,0.82354,2427.8,2427.7,0.82352]
[1751383918449,0.82354,2427.7,2427.6,59.323]
[1751383918655,0.82354,2427.7,2427.6,97.28157]
[1751383918852,0.82354,2427.7,2427.6,96.458]
[1751383919156,0.82354,2427.7,2427.6,97.28157]
[1751383920452,0.82353,2427.8,2427.7,0.8235]
[1751383920657,0.82349,2427.9,2427.8,0.82346]
[1751383920854,0.82349,2427.9,2427.8,26.17346]
[1751383921351,0.82347,2428.0,2427.9,0.82345]
[1751383921550,0.6938,2428.2,2428.0,0.82344]
[1751383921751,0.82343,2428.1,2428.0,0.82344]
[1751383921952,0.82343,2428.1,2428.0,26.17244]
[1751383922550,0.82343,2428.1,2428.0,37.95644]
[1751383922949,0.82336,2428.3,2428.2,0.82334]
[1751383923155,1.78427232,2428.3,2428.2,26.17234]
[1751383924155,0.82345,2428.1,2427.7,2.05883]
[1751383924459,0.82342,2428.1,2428.0,0.82341]
[1751383924658,0.82339,2428.2,2428.1,0.82337]
[1751383924960,0.82339,2428.2,2428.1,26.17037]
[1751383925151,1.78473869,2428.2,2428.1,26.17037]
[1751383925648,1.78473869,2428.2,2428.1,37.9544]
[1751383926758,0.8233,2428.5,2428.4,0.82328]
[1751383926959,1.78479886,2428.5,2428.4,3.86212911]
[1751383927159,1.78479886,2428.5,2428.4,29.20812911]
[1751383927758,0.96149886,2428.5,2428.4,29.20812911]
[1751383928155,0.82318,2428.8,2428.7,0.8232]
[1751383928348,0.82316,2428.8,2428.7,25.344]
[1751383928549,1.78472886,2428.8,2428.7,25.344]
[1751383928749,3.09582886,2428.8,2428.7,25.344]
[1751383929149,1.78472886,2428.8,2428.7,25.9997]
[1751383929448,0.96156886,2428.8,2428.7,11.783]
[1751383929654,1.78472886,2428.8,2428.7,37.127]
[1751383929854,0.8232,2428.7,2428.6,12.60621]
[1751383930054,1.78476886,2428.7,2428.6,37.127]
[1751383930258,1.78476886,2428.7,2428.6,37.126]
[1751383930657,1.68386886,2428.7,2428.4,1.47898]
[1751383930854,6.65614578,2428.6,2428.5,25.341]
[1751383931051,0.82323,2428.6,2428.5,25.341]
[1751383931556,2.27183,2428.6,2428.5,25.341]
[1751383932254,0.82323,2428.6,2428.5,25.341]
[1751383932654,2.27183,2428.6,2428.5,25.341]
[1751383932857,3.50673,2428.6,2428.0,0.6557]
[1751383933050,0.7223,2428.7,2428.0,0.6557]
[1751383933051,0.8234,2428.2,2428.1,0.82336]
[1751383933252,0.82337,2428.3,2428.2,0.82333]
[1751383933454,0.7223,2428.7,2428.2,5.83291578]
[1751383933654,0.8233,2428.4,2428.3,37.94532]
[1751383933860,0.8233,2428.4,2428.3,25.34]
[1751383934060,0.8233,2428.4,2428.3,26.16331]
[1751383934364,1.4887,2428.4,2428.3,26.16331]
[1751383935262,0.6654,2428.4,2428.3,26.16331]
[1751383935764,1.4887,2428.4,2428.3,26.16331]
[1751383935953,0.6914,2428.7,2428.3,25.34]
[1751383936155,0.82327,2428.6,2428.5,0.82323]
[1751383936359,0.82327,2428.6,2428.5,26.16223]
[1751383936563,1.51463,2428.7,2428.6,0.82323]
[1751383937356,1.48859,2428.8,2428.7,0.8232]
[1751383937665,0.82315,2428.9,2428.8,0.82316]
[1751383937864,0.82315,2428.9,2428.8,26.16116]
[1751383938168,1.50181,2429.0,2428.9,0.82313]
[1751383938768,0.6787,2429.0,2428.9,0.82313]
[1751383939161,1.48848,2429.1,2429.0,0.8231]
[1751383939564,0.82313,2429.0,2428.9,0.82311]
[1751383939869,0.82313,2428.9,2428.8,26.86284]
[1751383940058,0.82313,2428.9,2428.8,26.86286]
[1751383942066,0.82311,2429.0,2428.9,0.8231]
[1751383942269,0.6654,2429.1,2428.8,29.5159]
[1751383942566,0.82306,2429.2,2429.1,0.82303]
[1751383942773,0.82306,2429.2,2429.1,26.15703]
[1751383943273,0.82306,2429.1,2429.0,12.60307]
[1751383943570,1.7769445,2429.1,2429.0,37.93707]
[1751383943767,0.82306,2429.1,2429.0,37.93707]
[1751383943968,0.6616,2429.3,2429.2,0.82303]
[1751383944163,0.82299,2429.4,2429.3,0.823]
[1751383944369,0.82299,2429.4,2429.3,26.156]
[1751383944564,0.82295,2429.5,2429.4,0.82295]
[1751383944770,0.94534527,2429.5,2429.3,25.333]
[1751383944964,1.47831,2429.6,2429.3,25.333]
[1751383945165,0.66165601,2429.4,2429.3,26.156]
[1751383945371,1.61442692,2429.4,2429.3,31.98891578]
[1751383945575,0.66165601,2429.4,2429.3,31.98891578]
[1751383945766,0.66165601,2429.4,2429.3,36.98891578]
[1751383946273,0.6913,2429.9,2429.3,36.98891578]
[1751383946274,0.82273,2430.1,2429.3,36.16591578]
[1751383946577,0.82279,2429.9,2429.8,0.82281]
[1751383946871,0.82279,2429.9,2429.7,0.6598]
[1751383946872,0.82283,2429.8,2429.7,0.6598]
[1751383947173,0.82283,2429.8,2429.7,37.7648]
[1751383948167,2.76571,2429.9,2429.7,37.104]
[1751383948475,0.82289,2429.6,2429.5,0.6598]
[1751383948675,0.82289,2429.6,2429.5,37.7638]
[1751383949574,0.82289,2429.6,2429.5,0.6598]
[1751383949770,0.82293,2429.5,2429.4,71.065]
[1751383950074,1.50153,2429.5,2429.4,96.392]
[1751383951173,1.50153,2429.5,2429.4,97.21496]
[1751383951571,0.6633,2429.8,2429.4,96.392]
[1751383951877,0.82292,2429.6,2429.5,1.52299]
[1751383952068,0.82292,2429.6,2429.5,26.84899]
[1751383952573,0.82292,2429.6,2429.5,0.7001]
[1751383952772,0.82293,2429.5,2429.4,59.292]
[1751383952971,0.82293,2429.5,2429.4,97.21296]
[1751383953174,0.82293,2429.5,2429.4,96.39]
[1751383953778,0.82293,2429.5,2429.4,59.292]
[1751383954175,0.82293,2429.5,2429.4,96.389]
[1751383954481,1.54883,2429.5,2429.4,96.389]
[1751383955181,1.54883,2429.5,2429.4,84.617]
[1751383956881,1.54883,2429.5,2429.4,59.292]
[1751383957181,1.54883,2429.5,2429.4,84.617]
[1751383957375,0.82293,2429.5,2429.4,25.325]
[1751383957676,1.48283,2429.5,2429.4,25.325]
[1751383959983,0.82293,2429.5,2429.4,26.14796]
[1751383960183,0.82293,2429.5,2429.4,25.325]
[1751383960384,0.82299,2429.4,2429.3,0.82295]
[1751383960681,0.82295,2429.5,2429.4,0.82291]
[1751383960877,0.82295,2429.5,2429.4,26.85611]
[1751383961072,4.11296,2430.6,2429.5,2.05728]
[1751383961279,0.82284,2429.9,2429.8,0.8228]
[1751383961582,0.95125662,2430.1,2429.8,25.343]
[1751383961774,1.77403662,2430.0,2429.9,1.48766]
[1751383962281,1.77403662,2430.0,2429.9,0.6649]
[1751383962681,1.77403662,2430.0,2429.9,37.7759]
[1751383962988,0.95125662,2430.0,2429.9,25.336]
[1751383963282,1.77401662,2430.0,2429.9,25.336]
[1751383964477,0.82307,2429.2,2428.8,61.3379]
[1751383964681,0.82307,2429.2,2429.1,0.82304]
[1751383964882,0.82307,2429.2,2429.1,26.15904]
[1751383965382,0.82309,2429.1,2429.0,0.82307]
[1751383965587,0.82309,2429.1,2429.0,37.93307]
[1751383965788,0.82309,2429.1,2429.0,0.82307]
[1751383965984,0.82309,2429.1,2429.0,37.93307]
[1751383966186,0.82313,2428.9,2428.8,60.10314]
[1751383966381,0.82313,2428.9,2428.8,84.616]
[1751383966987,0.82313,2428.9,2428.8,85.43916]
[1751383967187,0.82313,2428.9,2428.8,60.10316]
[1751383967387,0.82313,2428.9,2428.8,97.22516]
[1751383967581,0.82313,2428.9,2428.8,99.65456824]
[1751383967781,0.82313,2428.9,2428.8,59.28]
[1751383967980,0.82313,2428.9,2428.8,98.82540824]
[1751383968187,0.82313,2428.9,2428.8,99.64856824]
[1751383968392,1.50312,2429.0,2428.9,0.82313]
[1751383969087,2.05724,2429.7,2428.8,98.82540824]
[1751383969282,0.82299,2429.4,2429.0,2.42940824]
[1751383969482,0.82295,2429.5,2429.1,26.7514]
[1751383969690,0.82295,2429.5,2429.4,0.82296]
[1751383969886,0.82295,2429.5,2429.4,26.16996]